bitfinex/quotes_ETHUSD_20240917
["timestamp","ask_amount","ask_price","bid_price","bid_amount"]
[1726535616148,8.79451,2274.2,2273.8,5.02987505]
[1726535616350,4.39725,2274.2,2273.8,5.02987505]
[1726535616554,4.39725,2274.2,2273.9,1.06555033]
[1726535617458,4.39725,2274.2,2273.9,1.10454053]
[1726535617675,4.397,2274.3,2273.9,1.10454053]
[1726535620198,4.39717,2274.2,2273.9,1.10454053]
[1726535620355,4.39717,2274.2,2273.9,0.0389902]
[1726535621943,4.397,2274.3,2273.9,0.0389902]
[1726535622149,8.79411,2274.3,2273.9,0.0389902]
[1726535623181,21.14012,2274.0,2273.9,0.0389902]
[1726535625246,29.90411207,2274.0,2273.9,0.0389902]
[1726535625489,28.77665,2274.0,2273.9,0.0389902]
[1726535627162,34.53511207,2274.0,2273.9,0.0389902]
[1726535627641,34.53511207,2274.0,2273.7,1.22751825]
[1726535627642,28.6775,2273.8,2273.7,1.22751825]
[1726535627895,28.6775,2273.8,2273.6,0.04]
[1726535627896,26.38866,2273.7,2273.6,0.04]
[1726535628105,26.38866,2273.7,2271.5,0.005]
[1726535628106,5.28108548,2271.8,2270.3,1.0601359]
[1726535628249,4.4032,2271.1,2270.4,3.0724]
[1726535628456,5.28108548,2271.3,2270.4,2.8224]
[1726535628457,4.40431,2270.5,2270.4,2.8224]
[1726535628787,0.15,2271.2,2270.3,1.0601359]
[1726535628788,13.21353,2270.4,2270.3,1.0601359]
[1726535628995,23.74814,2270.4,2270.3,1.0601359]
[1726535629148,19.34363,2270.4,2270.3,1.0601359]
[1726535629353,19.34363,2270.4,2270.0,0.517121]
[1726535629354,3.0,2270.3,2270.0,0.517121]
[1726535629581,20.62036,2270.1,2270.0,0.517121]
[1726535629943,21.17036,2270.1,2270.0,0.517121]
[1726535630146,16.21527,2270.1,2270.0,0.517121]
[1726535630371,16.76527,2270.1,2270.0,0.517121]
[1726535630575,4.40686,2269.2,2268.9,0.0630328]
[1726535630781,4.40661,2269.4,2268.9,0.0630328]
[1726535630945,5.395701,2270.1,2268.9,0.0630328]
[1726535630946,3.0,2269.7,2268.9,0.0630328]
[1726535631147,1.09671692,2270.0,2268.9,0.0630328]
[1726535631348,3.0,2269.9,2268.9,0.0630328]
[1726535631548,3.0,2270.1,2269.0,3.15]
[1726535631780,4.40452,2270.4,2268.9,0.0630328]
[1726535631781,4.40641,2269.5,2268.9,0.0630328]
[1726535632294,4.40645,2269.4,2268.9,0.0630328]
[1726535632467,3.0,2269.6,2268.9,0.0630328]
[1726535632798,3.0,2269.4,2268.9,0.0630328]
[1726535633102,4.40644,2269.5,2268.9,0.0630328]
[1726535633103,3.0,2269.6,2268.9,0.0630328]
[1726535633399,7.40552,2269.9,2268.9,0.0630328]
[1726535633702,4.40479,2270.3,2269.0,3.2952]
[1726535633851,4.40419,2270.6,2269.7,4.40586]
[1726535634049,3.2074,2270.7,2269.7,4.40586]
[1726535634050,7.61134,2270.7,2269.7,4.40586]
[1726535634362,0.64871764,2270.6,2269.7,4.40571]
[1726535634547,0.64871764,2270.6,2269.8,0.44938199]
[1726535635003,0.64871764,2270.6,2269.1,4.74277328]
[1726535635004,4.40571,2269.8,2269.1,0.33582328]
[1726535635154,4.40571,2269.8,2268.9,3.3582328]
[1726535635155,4.40589,2269.7,2268.9,3.3582328]
[1726535635503,4.40229,2271.6,2268.9,3.3582328]
[1726535635504,4.40422,2270.6,2269.4,3.2952]
[1726535635789,4.40422,2270.6,2269.6,4.40591]
[1726535636173,4.40422,2270.6,2269.6,4.49402068]
[1726535636417,4.40422,2270.6,2269.8,4.40564]
[1726535636575,4.40422,2270.6,2269.9,3.3124]
[1726535636775,4.844185,2270.8,2269.9,8.489664]
[1726535636979,0.440385,2270.8,2270.0,4.40512]
[1726535637179,4.40345,2271.0,2270.0,4.40512]
[1726535637389,0.47813497,2271.1,2269.9,4.084204]
[1726535637390,4.88128497,2271.1,2270.2,4.40475]
[1726535637602,4.88128497,2271.1,2269.9,3.3124]
[1726535637603,0.47813497,2271.1,2269.9,3.3124]
[1726535637905,4.40425,2270.6,2269.9,3.3124]
[1726535638108,4.40456,2270.4,2269.9,3.3124]
[1726535638393,4.40456,2270.4,2269.6,7.71831]
[1726535638604,3.48313497,2271.0,2269.6,7.71831]
[1726535638605,8.80886,2270.5,2269.6,3.3124]
[1726535638906,4.4053,2270.0,2269.6,3.3124]
[1726535639098,4.40497,2270.2,2269.6,3.3124]
[1726535639283,5.145967,2270.2,2269.6,3.3124]
[1726535639485,9.551007,2270.2,2269.6,3.3124]
[1726535639653,9.550997,2270.2,2269.6,3.3124]
[1726535640000,4.40548,2269.9,2269.6,3.3124]
[1726535640426,0.740997,2270.2,2269.6,3.3124]
[1726535640574,0.740997,2270.2,2268.9,4.4703428]
[1726535640575,4.40675,2269.3,2269.0,3.3124]
[1726535640777,4.40495,2270.2,2269.0,3.3124]
[1726535640778,4.40599,2269.7,2269.0,3.2624]
[1726535641021,3.0,2270.1,2269.0,3.2624]
[1726535641022,3.0,2269.9,2269.0,3.2624]
[1726535641185,4.40619,2269.6,2269.0,3.2624]
[1726535641386,4.40611,2269.6,2269.0,3.2624]
[1726535641586,4.40627,2269.5,2269.0,3.2624]
[1726535641785,4.40592,2269.7,2269.0,3.2624]
[1726535641786,5.146512,2269.7,2269.0,3.2624]
[1726535641986,4.845705,2270.1,2269.3,4.40663]
[1726535642213,3.0,2270.3,2269.0,3.35054038]
[1726535642424,4.40503,2270.2,2269.4,4.40644]
[1726535642722,4.40503,2270.2,2269.4,8.81274]
[1726535642925,4.40543,2270.0,2269.2,4.40668]
[1726535643108,4.40543,2270.0,2269.3,0.440668]
[1726535643109,4.4055,2269.9,2269.3,0.440668]
[1726535643427,4.40501,2270.2,2269.4,4.4945489]
[1726535643625,4.40501,2270.2,2269.5,4.40618]
[1726535643788,4.40474,2270.3,2269.6,7.46172]
[1726535643982,4.40458,2270.4,2269.7,0.746172]
[1726535644214,3.832906,2270.7,2270.0,3.0557]
[1726535644215,5.152736,2270.7,2270.0,3.0557]
[1726535644415,4.40385,2270.8,2270.0,3.0557]
[1726535644416,4.40385,2270.8,2270.0,7.46084]
[1726535644623,4.40385,2270.8,2270.0,11.866]
[1726535644624,9.74423751,2270.8,2270.0,11.866]
[1726535644931,4.40372,2270.9,2270.0,7.4609]
[1726535645229,4.40375,2270.8,2270.3,0.00315438]
[1726535645428,0.748756,2270.9,2270.3,0.00315438]
[1726535645601,8.80902,2270.4,2270.3,0.00315438]
[1726535645805,13.21353,2270.4,2270.3,0.00315438]
[1726535645999,8.80902,2270.4,2270.3,0.00315438]
[1726535646391,13.21353,2270.4,2270.3,0.00315438]
[1726535646586,8.80902,2270.4,2270.3,0.00315438]
[1726535646817,19.94323,2270.4,2270.3,0.00315438]
[1726535647017,24.34774,2270.4,2270.3,0.00315438]
[1726535647796,19.39323,2270.4,2270.3,0.00315438]
[1726535648250,14.98872,2270.4,2270.3,0.00315438]
[1726535648396,19.39323,2270.4,2270.3,0.00315438]
[1726535649140,23.79774,2270.4,2270.3,0.00315438]
[1726535649506,19.39323,2270.4,2270.3,0.00315438]
[1726535649716,23.79774,2270.4,2270.3,0.00315438]
[1726535650441,24.34774,2270.4,2270.3,0.00315438]
[1726535650844,24.34774,2270.4,2269.2,2.82805438]
[1726535650845,4.40628,2269.5,2269.2,2.82805438]
[1726535651927,4.40599,2269.7,2269.2,2.82805438]
[1726535651928,8.81202,2269.7,2269.2,2.82805438]
[1726535652230,4.40599,2269.7,2269.2,3.11085982]
[1726535652442,4.40626,2269.5,2269.2,2.82805438]
[1726535653009,4.40616,2269.6,2269.2,2.82805438]
[1726535653233,8.812,2269.7,2269.2,2.82805438]
[1726535653543,8.81195,2269.7,2269.2,2.82805438]
[1726535653700,4.40606,2269.6,2269.2,2.82805438]
[1726535654219,4.40597,2269.7,2269.2,2.82805438]
[1726535654551,4.40645,2269.4,2269.2,2.82805438]
[1726535655039,4.40633,2269.5,2269.2,2.82805438]
[1726535656333,4.40609,2269.6,2268.9,3.1276328]
[1726535656533,4.40722,2269.0,2268.9,3.1276328]
[1726535657020,4.40566,2269.9,2268.9,3.1276328]
[1726535657214,3.2632,2270.4,2269.4,3.0646]
[1726535657215,4.40577,2269.8,2269.4,3.0646]
[1726535657453,3.2632,2270.4,2269.4,3.0646]
[1726535657454,4.40601,2269.7,2269.4,3.0646]
[1726535657640,4.406,2269.7,2269.4,3.0646]
[1726535658018,4.40558,2269.9,2269.4,3.0646]
[1726535658220,4.40558,2269.9,2269.4,7.47093]
[1726535658441,5.57146817,2270.7,2269.5,4.4061]
[1726535658719,5.57146817,2270.7,2269.7,7.47036]
[1726535658720,4.40481,2270.3,2269.7,7.47036]
[1726535658919,4.405,2270.2,2269.7,8.66681927]
[1726535659664,4.40354,2270.9,2270.0,3.0646]
[1726535659665,0.53826171,2270.9,2270.0,3.0646]
[1726535659860,4.40445,2270.5,2270.0,3.0646]
[1726535660347,4.4049,2270.2,2270.0,3.0646]
[1726535660531,4.40509,2270.1,2270.0,3.0646]
[1726535660724,8.81018,2270.1,2270.0,3.0646]
[1726535661259,4.40509,2270.1,2270.0,3.0646]
[1726535661421,4.4055,2269.9,2269.7,3.0646]
[1726535661758,4.40531,2270.0,2269.7,3.0646]
[1726535662115,4.40548,2269.9,2269.7,3.0646]
[1726535662317,0.440445,2270.5,2269.7,3.0646]
[1726535662318,4.40491,2270.2,2269.7,3.0646]
[1726535662560,0.3703645,2270.4,2269.0,0.31276328]
[1726535662561,4.40636,2269.5,2269.0,3.0646]
[1726535662862,4.40636,2269.5,2269.0,7.47181]
[1726535663063,8.81273,2269.5,2269.0,4.30299428]
[1726535663224,6.2632,2270.1,2269.0,3.0646]
[1726535663225,4.4068,2269.3,2269.0,3.0646]
[1726535663425,4.40703,2269.1,2269.0,3.0646]
[1726535663656,8.81406,2269.1,2269.0,3.0646]
[1726535663863,4.40703,2269.1,2269.0,3.0646]
[1726535664022,3.0,2269.7,2269.0,3.0646]
[1726535664227,4.40692,2269.2,2269.0,3.0646]
[1726535664653,7.4059,2269.7,2269.0,3.0646]
[1726535664654,4.4059,2269.7,2269.0,3.0646]
[1726535664967,4.40587,2269.7,2269.2,7.47132]
[1726535665263,4.40579,2269.8,2269.3,8.81324]
[1726535665434,4.40556,2269.9,2269.4,4.40644]
[1726535665762,4.40542,2270.0,2269.6,3.0646]
[1726535666078,4.40522,2270.1,2269.6,7.47051]
[1726535666662,4.40504,2270.2,2269.6,8.658195]
[1726535666823,4.40509,2270.1,2269.6,13.064155]
[1726535667023,4.40503,2270.2,2269.7,4.40583]
[1726535667225,4.40501,2270.2,2269.7,5.7122455]
[1726535667659,4.405,2270.2,2269.7,1.3064155]
[1726535668127,4.405,2270.2,2269.7,5.7121855]
[1726535668463,4.40399,2270.7,2269.6,7.47051]
[1726535668464,4.40531,2270.0,2269.6,3.0646]
[1726535668633,9.97545817,2270.7,2269.1,3.1246]
[1726535668634,4.40644,2269.5,2269.1,3.1246]
[1726535669161,8.81121,2269.9,2269.3,4.40653]
[1726535669359,3.1988,2270.3,2269.2,3.2267]
[1726535669360,4.40511,2270.1,2269.2,3.2267]
[1726535669577,4.40559,2269.9,2269.3,4.40663]
[1726535669869,4.4058,2269.8,2269.2,7.63342]
[1726535670038,4.40559,2269.9,2269.3,4.40648]
[1726535670245,8.81123,2269.9,2269.3,4.40648]
[1726535670450,4.40579,2269.8,2269.2,3.2267]
[1726535670632,4.40597,2269.7,2269.2,7.6335]
[1726535670838,4.40617,2269.6,2269.2,3.2267]
[1726535671038,8.81237,2269.6,2269.2,3.2267]
[1726535671251,4.40626,2269.5,2269.2,3.2267]
[1726535671476,3.31988,2270.2,2269.2,3.2267]
[1726535671633,4.40626,2269.5,2269.2,3.54937]
[1726535671976,4.40626,2269.5,2269.2,3.2267]
[1726535672192,4.40588,2269.7,2269.2,3.2267]
[1726535672193,4.40608,2269.6,2269.2,3.2267]
[1726535672396,0.651868,2270.1,2269.3,4.40655]
[1726535672397,4.40572,2269.8,2269.3,4.40655]
[1726535672699,4.40562,2269.9,2269.5,3.1871]
[1726535673044,0.31988,2270.2,2269.5,3.538077]
[1726535673045,4.40505,2270.2,2269.5,3.538077]
[1726535673237,4.40513,2270.1,2269.6,4.40606]
[1726535673479,4.40513,2270.1,2269.6,4.96439255]
[1726535673680,4.40513,2270.1,2269.7,2.55039086]
[1726535673846,8.81011,2270.2,2269.8,1.02016008]
[1726535674055,8.81011,2270.2,2269.9,2.55425576]
[1726535674056,4.40511,2270.1,2269.9,2.55425576]
[1726535674397,4.40532,2270.0,2269.8,0.90529101]
[1726535674598,4.40532,2270.0,2269.7,0.90529101]
[1726535674802,4.40532,2270.0,2269.8,2.55428493]
[1726535675029,4.40532,2270.0,2269.7,0.90529101]
[1726535675308,4.40532,2270.0,2269.8,2.55437651]
[1726535675453,4.40532,2270.0,2269.7,0.90529101]
[1726535675650,4.40532,2270.0,2269.8,2.55439395]
[1726535675855,4.40532,2270.0,2269.7,0.90529101]
[1726535676156,4.40532,2270.0,2269.8,1.02176889]
[1726535676358,4.40532,2270.0,2269.6,0.90529101]
[1726535676564,4.40532,2270.0,2269.7,2.55446585]
[1726535676891,4.40548,2269.9,2269.6,0.90529101]
[1726535677095,4.40548,2269.9,2269.4,0.90529101]
[1726535677096,4.40606,2269.6,2269.4,0.90529101]
[1726535677260,8.81231,2269.6,2269.3,0.90529101]
[1726535677587,5.286617,2269.9,2269.3,0.90529101]
[1726535677588,4.40578,2269.8,2269.4,2.55499023]
[1726535677808,4.40578,2269.8,2269.3,0.90529101]
[1726535677809,4.40578,2269.8,2269.5,1.02195515]
[1726535678019,4.40578,2269.8,2269.3,5.31191101]
[1726535678319,4.40553,2269.9,2269.4,2.55529828]
[1726535678491,4.40553,2269.9,2269.5,1.02211931]
[1726535678810,4.40572,2269.8,2269.4,0.90529101]
[1726535679029,4.40572,2269.8,2269.5,1.02215063]
[1726535679215,4.40572,2269.8,2269.3,5.31179101]
[1726535679394,4.40572,2269.8,2269.4,2.55590485]
[1726535679571,4.40572,2269.8,2269.5,1.02236194]
[1726535679771,4.40572,2269.8,2269.3,5.96842472]
[1726535680017,4.40553,2269.9,2269.4,1.02243111]
[1726535680322,4.4052,2270.1,2269.5,1.02233133]
[1726535680514,4.4052,2270.1,2269.6,4.40601]
[1726535680672,4.4052,2270.1,2269.6,5.30348229]
[1726535681318,4.40482,2270.3,2269.4,3.5753]
[1726535681319,4.40557,2269.9,2269.4,3.5753]
[1726535681476,8.81116,2269.9,2269.4,3.5753]
[1726535681701,0.55290977,2270.4,2269.4,3.5753]
[1726535681702,4.40602,2269.7,2269.4,3.5753]
[1726535681902,8.81203,2269.7,2269.4,3.5753]
[1726535682307,4.40601,2269.7,2269.4,3.5753]
[1726535682637,4.40615,2269.6,2269.2,3.5735]
[1726535683000,8.8124,2269.6,2269.2,3.5735]
[1726535683202,4.40627,2269.5,2269.2,3.5735]
[1726535683597,4.4063,2269.5,2269.2,3.5735]
[1726535683799,4.40693,2269.2,2268.9,3.6862328]
[1726535684045,4.40658,2269.4,2268.9,3.6862328]
[1726535684234,4.40685,2269.2,2268.9,3.6862328]
[1726535684543,4.40667,2269.3,2268.9,3.6862328]
[1726535684840,4.40658,2269.4,2268.9,8.0936428]
[1726535685137,4.40655,2269.4,2268.9,8.0935328]
[1726535685440,8.81312,2269.4,2268.9,8.0935328]
[1726535685753,4.40654,2269.4,2268.9,8.0935328]
[1726535685906,4.40664,2269.3,2268.9,3.6862328]
[1726535686509,4.40654,2269.4,2268.9,8.0936528]
[1726535686803,4.40654,2269.4,2268.9,4.93636708]
[1726535687022,4.40674,2269.3,2268.9,4.93636708]
[1726535687223,4.40654,2269.4,2268.9,13.75116708]
[1726535687501,4.40654,2269.4,2268.9,8.0936328]
[1726535688011,4.40654,2269.4,2268.9,3.6862328]
[1726535688218,4.40654,2269.4,2268.9,8.0935628]
[1726535688736,4.40654,2269.4,2269.0,4.40722]
[1726535689245,4.40617,2269.6,2269.0,4.40712]
[1726535689389,4.40616,2269.6,2269.1,7.79183]
[1726535689589,4.40616,2269.6,2269.1,9.04152083]
[1726535689748,4.40616,2269.6,2269.2,4.40682]
[1726535690253,4.40578,2269.8,2269.2,8.81346]
[1726535690254,4.40588,2269.7,2269.2,8.81346]
[1726535690460,4.40588,2269.7,2269.2,10.16391688]
[1726535691148,4.40578,2269.8,2269.3,4.40661]
[1726535691465,4.40578,2269.8,2269.5,3.6375]
[1726535691662,4.40543,2270.0,2269.5,3.6375]
[1726535691663,4.40548,2269.9,2269.5,3.6375]
[1726535691867,4.4054,2270.0,2269.5,8.04366]
[1726535692064,4.4054,2270.0,2269.5,8.0535688]
[1726535692253,8.81079,2270.0,2269.5,8.0535688]
[1726535692458,4.40539,2270.0,2269.5,8.0535688]
[1726535692754,4.40539,2270.0,2269.5,13.70570368]
[1726535693166,4.4051,2270.1,2269.6,4.40588]
[1726535693378,4.40534,2270.0,2269.5,9.29954368]
[1726535693587,4.4051,2270.1,2269.6,5.33601437]
[1726535693762,8.81029,2270.1,2269.6,5.33601437]
[1726535693967,4.4051,2270.1,2269.6,5.33601437]
[1726535694220,4.4051,2270.1,2269.6,5.34592317]
[1726535694380,8.81029,2270.1,2269.6,5.34592317]
[1726535694581,8.8103,2270.1,2269.6,5.34592317]
[1726535695665,4.4051,2270.1,2269.6,5.34592317]
[1726535695864,4.4051,2270.1,2269.7,0.89834232]
[1726535696098,8.81029,2270.1,2269.7,0.0099088]
[1726535696303,4.40535,2270.0,2269.7,0.0099088]
[1726535696743,4.4051,2270.1,2269.7,0.0099088]
[1726535696907,6.19721746,2270.3,2269.9,3.559]
[1726535697106,4.40484,2270.3,2269.9,3.5689088]
[1726535697628,4.40444,2270.5,2269.9,7.9742488]
[1726535697767,4.40442,2270.5,2270.0,0.80626831]
[1726535698269,4.40442,2270.5,2270.0,5.21150831]
[1726535698772,8.8089,2270.5,2270.0,0.80626831]
[1726535698971,4.40442,2270.5,2270.0,0.80626831]
[1726535699173,4.40442,2270.5,2270.0,5.21152831]
[1726535699174,8.8089,2270.5,2270.0,5.21152831]
[1726535699472,4.40462,2270.4,2269.9,3.5689088]
[1726535699815,4.40442,2270.5,2269.9,8.06236222]
[1726535700174,8.80883,2270.5,2269.9,8.06236222]
[1726535700731,8.80884,2270.5,2269.9,8.06236222]
[1726535700911,8.80884,2270.5,2269.9,9.38968603]
[1726535701096,4.40462,2270.4,2269.9,4.98432603]
[1726535701299,1.79237746,2270.8,2269.9,3.5689088]
[1726535701514,3.494,2270.4,2269.9,0.0099088]
[1726535701720,4.40528,2270.0,2269.9,0.0099088]
[1726535702098,7.89853,2270.4,2269.9,0.0099088]
[1726535702099,4.40509,2270.1,2269.9,0.0099088]
[1726535702639,12.19066,2270.0,2269.9,0.0099088]
[1726535702792,8.81056,2270.0,2269.9,0.0099088]
[1726535703223,8.81009,2270.2,2269.9,0.0099088]
[1726535703522,4.40503,2270.2,2269.9,0.0099088]
[1726535703736,4.40482,2270.3,2270.0,3.4951]
[1726535704735,4.40482,2270.3,2269.9,0.0099088]
[1726535704736,8.81018,2270.1,2269.9,0.0099088]
[1726535704886,0.880945,2270.3,2269.9,0.0099088]
[1726535704887,4.40528,2270.0,2269.9,0.0099088]
[1726535705393,4.40513,2270.1,2269.9,0.0099088]
[1726535706238,4.40528,2270.0,2269.9,0.0099088]
[1726535707625,4.40513,2270.1,2269.9,0.0099088]
[1726535708035,4.40504,2270.2,2269.9,0.0099088]
[1726535708246,4.40515,2270.1,2269.9,0.0099088]
[1726535708944,4.405,2270.2,2269.9,0.0099088]
[1726535709103,4.40525,2270.1,2269.9,0.0099088]
[1726535709527,4.405,2270.2,2269.9,0.0099088]
[1726535709932,4.40477,2270.3,2269.9,0.0099088]
[1726535710141,4.4046,2270.4,2270.0,3.4202]
[1726535710743,4.40482,2270.3,2270.0,3.4202]
[1726535710944,4.4052,2270.1,2269.9,0.0099088]
[1726535711250,8.81056,2270.0,2269.9,0.0099088]
[1726535713828,4.40528,2270.0,2269.9,3.7326088]
[1726535714129,4.40511,2270.1,2269.9,3.7326088]
[1726535714842,4.40528,2270.0,2269.9,3.7326088]
[1726535715047,4.40511,2270.1,2269.9,3.7326088]
[1726535715216,4.40489,2270.2,2269.9,4.10586968]
[1726535715551,8.80967,2270.3,2269.9,4.10586968]
[1726535715760,4.4049,2270.2,2269.9,3.7326088]
[1726535717156,4.40469,2270.4,2269.9,3.7326088]
[1726535717321,4.40474,2270.3,2269.9,4.54642568]
[1726535718173,4.40422,2270.6,2269.9,4.54642568]
[1726535718473,4.40347,2271.0,2270.4,8.07958]
[1726535718635,3.6287,2271.2,2270.4,8.07958]
[1726535718636,4.40309,2271.2,2270.5,4.40431]
[1726535718822,4.40309,2271.2,2270.8,3.6752]
[1726535719023,8.80618,2271.2,2270.8,3.6752]
[1726535719335,4.40309,2271.2,2270.8,3.6752]
[1726535719833,8.80536,2271.4,2270.8,8.16688101]
[1726535720021,8.80536,2271.4,2270.9,1.2570801]
[1726535720022,4.40266,2271.4,2270.9,1.2570801]
[1726535720328,4.40266,2271.4,2270.9,5.6605101]
[1726535720530,4.40222,2271.6,2270.9,4.40343]
[1726535720763,4.40249,2271.5,2270.9,4.40343]
[1726535721059,4.4031,2271.2,2270.8,3.6752]
[1726535721421,2.76766741,2272.0,2270.8,3.6752]
[1726535721422,4.4025,2271.5,2270.9,4.49146812]
[1726535721720,4.4025,2271.5,2270.9,4.40341]
[1726535721958,4.4025,2271.5,2271.0,0.807861]
[1726535722118,4.4025,2271.5,2271.1,3.6391]
[1726535722322,8.805,2271.5,2271.1,3.6391]
[1726535722539,4.3025,2271.5,2271.1,3.6391]
[1726535722724,4.40289,2271.3,2271.1,3.6391]
[1726535722922,8.80578,2271.3,2271.1,3.6391]
[1726535723355,4.40289,2271.3,2271.1,3.6391]
[1726535723576,4.40279,2271.3,2271.1,3.6391]
[1726535723860,8.80567,2271.3,2271.1,3.6391]
[1726535724164,4.40279,2271.3,2271.1,3.6391]
[1726535724338,4.40295,2271.2,2271.1,3.6391]
[1726535724538,4.40279,2271.3,2271.1,3.6391]
[1726535725568,4.40193,2271.8,2271.1,4.00301]
[1726535725770,5.9871081,2272.0,2271.1,4.00301]
[1726535725771,4.40213,2271.7,2271.1,4.00301]
[1726535725988,4.40213,2271.7,2271.2,0.840626]
[1726535725989,4.40241,2271.5,2271.2,0.840626]
[1726535726331,4.40213,2271.7,2271.2,0.840626]
[1726535726563,4.40109,2272.2,2271.4,3.5083]
[1726535726874,4.4018,2271.8,2271.5,0.08803435]
[1726535727075,4.4018,2271.8,2271.5,0.35963344]
[1726535727869,4.40164,2271.9,2271.5,0.35963344]
[1726535728669,4.40164,2271.9,2271.6,0.08803134]
[1726535728971,4.40181,2271.8,2271.6,0.83584948]
[1726535729291,4.40198,2271.7,2271.4,3.5083]
[1726535729471,4.40198,2271.7,2271.5,0.35083]
[1726535729641,8.80371,2271.8,2271.5,0.35083]
[1726535729835,3.6054,2272.3,2271.5,0.35083]
[1726535729836,4.40161,2271.9,2271.5,0.35083]
[1726535730031,4.40122,2272.1,2271.5,0.35083]
[1726535730232,4.40114,2272.2,2271.7,7.97327]
[1726535730467,4.40111,2272.2,2271.8,0.0880219]
[1726535730693,4.4375504,2272.4,2271.8,5.73613809]
[1726535730904,8.8383004,2272.4,2271.8,5.73604809]
[1726535731054,0.0368004,2272.4,2272.0,4.40138]
[1726535731259,0.0368004,2272.4,2272.2,3.4358]
[1726535731481,4.4374504,2272.4,2272.2,3.4358]
[1726535733063,0.0368004,2272.4,2272.2,3.4358]
[1726535733290,0.0368004,2272.4,2272.3,0.34358]
[1726535733860,4.4374504,2272.4,2272.2,3.4358]
[1726535734499,4.40082,2272.3,2271.7,3.6231]
[1726535734700,4.40082,2272.3,2271.8,4.76408]
[1726535734701,8.80181,2272.3,2271.8,4.76408]
[1726535734905,4.40104,2272.2,2271.8,0.36231]
[1726535735196,4.40082,2272.3,2271.8,4.7641]
[1726535735406,4.40082,2272.3,2271.9,0.83872]
[1726535735702,8.80174,2272.3,2271.9,0.83872]
[1726535735906,8.80253,2272.1,2271.9,0.83872]
[1726535736060,4.40108,2272.2,2271.8,0.36231]
[1726535736694,4.40096,2272.3,2271.9,3.5231]
[1726535736902,4.40117,2272.2,2272.0,0.388541]
[1726535737211,4.40121,2272.1,2272.0,0.388541]
[1726535737362,8.80187,2272.3,2272.0,0.388541]
[1726535737566,4.40103,2272.2,2272.0,0.388541]
[1726535738003,4.40086,2272.3,2272.0,0.388541]
[1726535738212,8.80181,2272.3,2272.0,0.388541]
[1726535738416,8.80179,2272.3,2271.9,3.5231]
[1726535738601,4.40103,2272.2,2271.9,3.5231]
[1726535738783,4.40086,2272.3,2271.9,3.5231]
[1726535739217,8.80186,2272.3,2271.9,3.5231]
[1726535739414,4.40122,2272.1,2271.9,3.5231]
[1726535739783,8.80186,2272.3,2271.9,3.5231]
[1726535739987,4.4011,2272.2,2271.9,4.351818]
[1726535742387,4.40191,2271.8,2271.5,3.4243]
[1726535742587,4.40194,2271.8,2271.5,3.4243]
[1726535743004,8.80267,2272.1,2271.5,7.82649]
[1726535743210,4.4015,2272.0,2271.6,0.34243]
[1726535743422,4.40169,2271.9,2271.6,0.34243]
[1726535743718,4.40169,2271.9,2271.5,3.4243]
[1726535744498,4.40161,2271.9,2271.0,4.40325]
[1726535744686,3.3697,2272.1,2270.9,3.4424]
[1726535744687,4.8019896,2271.8,2270.9,3.4424]
[1726535744999,4.40283,2271.3,2270.9,3.4424]
[1726535746750,4.40259,2271.4,2270.9,3.4424]
[1726535746751,8.80527,2271.4,2270.9,3.4424]
[1726535746889,4.40282,2271.3,2270.9,3.4424]
[1726535747089,4.40282,2271.3,2270.9,4.667382]
[1726535747734,4.40316,2271.1,2270.9,4.667382]
[1726535747932,4.40282,2271.3,2270.9,3.4424]
[1726535748130,4.40305,2271.2,2270.9,3.4424]
[1726535748295,4.40282,2271.3,2270.9,7.84593]
[1726535748494,4.40282,2271.3,2271.0,0.34424]
[1726535748694,4.4025,2271.5,2271.0,0.34424]
[1726535748695,8.80502,2271.5,2271.0,0.34424]
[1726535748997,4.4026,2271.4,2271.0,0.34424]
[1726535749308,4.40286,2271.3,2271.0,0.34424]
[1726535751732,4.40305,2271.2,2271.0,0.34424]
[1726535751935,4.40286,2271.3,2270.9,3.4424]
[1726535752417,8.80576,2271.3,2270.9,3.4424]
[1726535752743,4.40296,2271.2,2270.9,3.4424]
[1726535753107,4.40286,2271.3,2270.9,3.4424]
[1726535753305,8.80573,2271.3,2270.9,4.13271168]
[1726535753508,4.40286,2271.3,2270.9,4.13271168]
[1726535754540,4.40306,2271.2,2270.9,4.13271168]
[1726535754911,8.80581,2271.3,2270.9,4.13271168]
[1726535755445,8.80573,2271.3,2270.9,4.13271168]
[1726535755630,8.80571,2271.3,2270.9,4.13271168]
[1726535756452,4.40285,2271.3,2270.9,4.13271168]
[1726535756638,8.80576,2271.3,2270.9,4.13271168]
[1726535756809,4.40285,2271.3,2270.9,4.13271168]
[1726535757142,4.40317,2271.1,2270.9,0.69031168]
[1726535757311,4.40317,2271.1,2270.7,3.562]
[1726535757509,5.64505304,2271.5,2270.3,3.562]
[1726535757510,4.40373,2270.8,2270.3,3.562]
[1726535757713,4.4044,2270.5,2270.3,3.562]
[1726535758328,4.40403,2270.7,2270.3,3.562]
[1726535758516,4.40403,2270.7,2270.3,4.358689]
[1726535758739,8.80812,2270.7,2270.3,4.358689]
[1726535759327,8.80807,2270.7,2270.3,4.358689]
[1726535759536,4.40418,2270.6,2270.3,4.358689]
[1726535759811,4.40418,2270.6,2270.3,3.562]
[1726535760044,4.40403,2270.7,2270.3,3.562]
[1726535760350,4.40375,2270.8,2270.3,7.96666]
[1726535760575,4.40375,2270.8,2270.4,0.796666]
[1726535761278,4.40375,2270.8,2270.4,5.201166]
[1726535761423,4.40364,2270.9,2270.4,0.796666]
[1726535762259,4.40394,2270.7,2270.4,0.796666]
[1726535762851,3.4512,2271.2,2270.7,4.40382]
[1726535762852,4.40305,2271.2,2270.7,4.40382]
[1726535763021,4.40305,2271.2,2270.8,3.4266]
[1726535763225,4.4027,2271.4,2270.8,3.4266]